bitfinex/quotes_ETHUSD_20220226
["timestamp","ask_amount","ask_price","bid_price","bid_amount"]
[1645894011372,2.30495838,2788.4,2788.1,0.00495902]
[1645894011777,0.89734,2788.3,2788.1,0.00495902]
[1645894012178,0.3,2788.2,2788.1,0.00495902]
[1645894012373,0.3,2788.2,2787.7,0.00375813]
[1645894012624,3.60495834,2788.4,2788.1,0.00495902]
[1645894012822,0.8973532,2788.2,2788.1,0.00495902]
[1645894013121,2.0,2788.1,2787.5,0.49028712]
[1645894013728,2.0,2788.1,2787.6,1.51582567]
[1645894014322,2.0,2788.1,2787.1,3.1097]
[1645894014523,2.0,2788.1,2787.2,1.51579373]
[1645894015323,2.0,2788.1,2787.2,1.87379373]
[1645894015525,2.0,2788.1,2787.4,0.358]
[1645894015726,2.0,2788.1,2787.5,1.51579373]
[1645894015926,2.0,2788.1,2788.0,1.15150259]
[1645894016395,0.00216512,2788.3,2788.0,1.15150259]
[1645894016590,0.00216512,2788.3,2788.1,1.51558745]
[1645894017186,2.0,2789.0,2788.9,1.22320787]
[1645894017386,0.00495852,2788.3,2788.0,0.2549592]
[1645894017586,0.00495852,2788.3,2788.1,1.51554807]
[1645894018386,2.0,2789.0,2788.7,1.16600005]
[1645894018586,2.3,2789.0,2788.7,1.16600005]
[1645894019185,2.3,2789.0,2788.0,0.0049592]
[1645894019385,2.3,2789.0,2788.1,1.51548911]
[1645894019592,2.3,2789.0,2788.2,0.00374319]
[1645894019787,0.00495822,2788.6,2788.2,0.00374319]
[1645894020010,0.00495822,2788.6,2788.1,1.51548911]
[1645894020210,0.00495822,2788.6,2788.2,1.05983156]
[1645894020817,2.3,2789.0,2788.3,1.51551887]
[1645894021022,0.00495832,2788.5,2788.3,0.00374319]
[1645894021317,0.00495832,2788.5,2788.2,1.05983156]
[1645894021916,2.3,2789.0,2788.2,1.05983156]
[1645894022315,0.00495837,2788.5,2788.2,1.05983156]
[1645894022817,0.00495837,2788.5,2788.2,0.95983156]
[1645894023021,0.00495837,2788.5,2788.0,0.0087025]
[1645894023218,1.7943013,2788.8,2788.1,1.51561331]
[1645894023423,1.7943013,2788.8,2788.2,0.00374319]
[1645894023424,0.00495837,2788.5,2788.2,0.00374319]
[1645894023622,0.00495837,2788.5,2788.0,0.0087025]
[1645894023873,0.79875837,2788.5,2788.0,0.0087025]
[1645894024076,0.79875837,2788.5,2788.0,0.00495931]
[1645894024077,0.18008108,2788.4,2788.0,0.00495931]
[1645894024470,0.18008108,2788.4,2787.6,0.00374319]
[1645894024771,0.3,2788.2,2788.0,0.00495923]
[1645894025572,0.3,2788.2,2787.2,0.00374319]
[1645894025769,0.3,2788.2,2787.2,1.51960848]
[1645894025979,2.60332,2788.2,2788.0,0.00495912]
[1645894026176,2.78340108,2788.2,2788.0,0.00495912]
[1645894026379,2.0,2788.1,2788.0,0.00495912]
[1645894026878,2.0,2788.1,2787.3,0.00374319]
[1645894027075,2.0,2788.1,2787.9,0.00495917]
[1645894027526,4.23079556,2788.0,2787.9,0.00495917]
[1645894027725,1.3,2788.0,2787.9,0.00495917]
[1645894027924,1.3,2788.0,2787.3,0.00374319]
[1645894028124,2.0,2787.9,2787.4,1.06730672]
[1645894028523,2.3,2787.9,2787.3,0.00374319]
[1645894028727,2.3,2787.9,2787.3,1.51591861]
[1645894029524,2.3,2787.9,2787.5,0.00495573]
[1645894030324,2.3,2787.9,2787.3,0.53579469]
[1645894030530,2.3,2787.9,2787.4,1.51593765]
[1645894030732,2.3,2787.9,2787.6,0.00495563]
[1645894030733,2.0,2787.9,2787.6,0.00495563]
[1645894031482,2.0,2787.9,2787.7,2.59874585]
[1645894031681,2.0,2788.3,2788.2,1.14084859]
[1645894031895,2.00495428,2788.3,2787.6,0.00495558]
[1645894032085,2.30495428,2788.3,2787.7,1.51572187]
[1645894032883,2.3,2788.3,2787.7,1.51572187]
[1645894033082,2.3,2788.3,2788.1,1.0549523]
[1645894034092,2.3,2788.3,2787.5,0.00374319]
[1645894034283,2.3,2788.3,2788.0,0.00278954]
[1645894035115,0.02219701,2788.2,2787.3,4.23453875]
[1645894035314,0.02219701,2788.2,2787.7,1.34582989]
[1645894035517,0.02219701,2788.2,2788.0,0.00495184]
[1645894035717,0.91954811,2788.2,2788.0,0.00495184]
[1645894035919,1.21954811,2788.2,2788.0,0.00495184]
[1645894036520,0.32219701,2788.2,2787.7,1.34582989]
[1645894036721,0.32219701,2788.2,2788.0,0.0049518]
[1645894036922,0.02219701,2788.2,2788.0,0.0049518]
[1645894037135,0.02219701,2788.2,2788.1,1.51562582]
[1645894038119,0.00495117,2788.3,2788.1,1.51562582]
[1645894038320,0.00495117,2788.3,2788.2,1.26315142]
[1645894038520,0.00495117,2788.3,2788.2,2.77877724]
[1645894038790,0.02219701,2788.9,2788.2,2.77877724]
[1645894038979,0.02219701,2788.9,2788.2,1.26315142]
[1645894039177,0.00495116,2788.4,2788.2,1.26315142]
[1645894039978,0.02219701,2788.9,2788.2,1.26315142]
[1645894040477,0.00495111,2788.4,2788.2,1.26315142]
[1645894041282,0.02219701,2788.3,2788.2,1.26315142]
[1645894041983,0.02219701,2788.3,2788.2,2.77870795]
[1645894042286,0.02219701,2788.3,2788.2,1.26315142]
[1645894043918,0.02219701,2788.3,2788.2,7.00950448]
[1645894044319,0.00495116,2788.4,2788.2,7.00950448]
[1645894044518,0.00495116,2788.4,2788.3,5.74635306]
[1645894044927,0.02219701,2788.9,2788.3,5.74635306]
[1645894045127,5.111e-05,2788.4,2788.3,4.58879556]
[1645894045325,1.80941463,2789.8,2788.3,4.58879556]
[1645894045326,2.0,2789.4,2788.5,0.358]
[1645894045521,2.0,2789.4,2788.7,0.358]
[1645894045721,2.0,2789.4,2788.9,0.358]
[1645894045923,2.0,2789.4,2788.9,4.58879556]
[1645894046376,2.0,2789.4,2789.0,1.21219065]
[1645894046574,2.0,2789.4,2789.1,4.23079556]
[1645894046776,2.0,2789.4,2789.1,4.58879556]
[1645894046983,2.69017,2790.4,2789.1,4.58879556]
[1645894046984,1.85793981,2790.3,2789.2,14.88902522]
[1645894047181,0.5,2790.3,2789.4,0.358]
[1645894047375,0.5,2790.3,2790.2,1.27579179]
[1645894047774,1.35793981,2790.7,2790.2,1.79179179]
[1645894047976,0.00862904,2790.8,2790.3,0.89611]
[1645894047977,1.36656885,2790.8,2790.3,0.89611]
[1645894048173,0.00862904,2790.8,2790.3,0.89611]
[1645894048380,0.5,2791.1,2790.4,0.516]
[1645894048381,1.85793981,2791.1,2790.4,0.516]
[1645894048574,1.35793981,2791.1,2790.4,0.76]
[1645894048775,1.35793981,2791.0,2790.4,0.516]
[1645894049074,1.35793981,2791.2,2790.4,0.516]
[1645894049279,1.36141922,2791.2,2790.4,0.516]
[1645894049476,1.35793981,2791.2,2790.4,0.516]
[1645894049675,1.65793981,2791.2,2790.4,0.516]
[1645894049882,0.30347941,2791.2,2790.7,1.3629428]
[1645894050123,1.36141922,2791.3,2790.4,0.516]
[1645894050719,1.36141922,2791.3,2790.5,4.22964446]
[1645894050922,0.00347941,2791.3,2790.5,4.22964446]
[1645894051524,0.00347941,2791.3,2790.6,0.516]
[1645894051725,0.00347941,2791.3,2790.7,3.52262111]
[1645894051926,4.65793981,2791.4,2790.5,3.5231207]
[1645894051927,3.3,2791.4,2790.5,3.5231207]
[1645894052127,0.00347941,2791.3,2790.4,0.516]
[1645894052327,0.00494503,2791.1,2790.4,0.516]
[1645894053328,0.00347941,2791.3,2790.7,1.42275164]
[1645894053628,0.00494523,2790.9,2790.7,1.42275164]
[1645894053887,0.00494523,2790.9,2790.8,0.516]
[1645894054082,0.00494523,2790.9,2790.8,1.6886]
[1645894054479,4.23312387,2791.8,2790.8,1.8319]
[1645894054480,0.00347941,2791.7,2790.8,1.8319]
[1645894054683,0.00494513,2791.0,2790.8,1.4739]
[1645894054881,0.00494513,2791.0,2790.8,0.6593]
[1645894055283,0.00494513,2791.0,2790.8,0.1433]
[1645894055480,0.00494513,2791.0,2790.7,1.42275164]
[1645894055680,0.89969941,2791.7,2790.7,1.42275164]
[1645894055880,0.00494508,2791.0,2790.7,1.42275164]
[1645894056882,0.00347941,2791.7,2790.7,1.42275164]
[1645894057080,0.00494513,2791.0,2790.7,1.42275164]
[1645894057724,0.00180378,2791.0,2790.7,1.42275164]
[1645894058122,0.00347941,2791.7,2790.7,1.42275164]
[1645894058323,0.30347941,2791.7,2790.7,1.42275164]
[1645894058523,4.53312387,2791.7,2790.7,1.42275164]
[1645894058828,0.8962714,2791.6,2790.7,1.42275164]
[1645894059022,0.00347941,2791.5,2790.7,1.42275164]
[1645894060428,0.00347941,2791.7,2790.7,1.42275164]
[1645894060831,0.00494488,2791.2,2790.7,1.42275164]
[1645894061696,0.00347941,2791.7,2790.7,1.42275164]
[1645894061896,0.00494494,2791.1,2790.7,1.42275164]
[1645894062694,0.00494494,2791.1,2790.7,1.93875164]
[1645894062894,0.00347941,2791.7,2790.7,1.93875164]
[1645894063100,0.00347941,2791.7,2791.6,1.42141119]
[1645894063400,2.0,2791.9,2791.6,1.19694325]
[1645894063597,4.1227,2792.2,2791.6,2.52144325]
[1645894063598,0.00347941,2792.2,2791.6,2.52144325]
[1645894063799,0.00347941,2792.3,2791.6,2.52144325]
[1645894063997,0.00347941,2792.6,2791.6,2.52144325]
[1645894064400,0.00494408,2792.0,2791.6,2.52144325]
[1645894064597,0.00494408,2792.0,2791.3,0.516]
[1645894065224,1.36147941,2792.6,2791.3,0.516]
[1645894065425,0.00494433,2791.8,2791.3,0.516]
[1645894065828,0.00494433,2791.8,2791.6,1.13579259]
[1645894066026,0.00494433,2791.8,2791.3,0.516]
[1645894066428,0.00347941,2792.4,2791.3,0.516]
[1645894066628,0.89603,2792.3,2791.3,0.516]
[1645894066829,0.00494443,2791.7,2791.3,0.516]
[1645894067031,0.00494443,2791.7,2791.2,1.03438934]
[1645894067240,0.00494443,2791.7,2790.9,7.9394]
[1645894067631,0.00347941,2791.9,2790.7,0.1431]
[1645894068036,0.00494468,2791.4,2790.7,0.1431]
[1645894068632,0.00494468,2791.4,2790.4,0.1433]
[1645894068890,5.76853641,2791.6,2790.4,0.1433]
[1645894069091,0.00494493,2791.2,2790.4,0.1433]
[1645894069284,0.8965207,2791.1,2790.4,0.1433]
[1645894069585,0.3,2791.0,2790.4,0.1433]
[1645894070382,0.00347941,2791.1,2790.4,0.1433]
[1645894070383,0.30842416,2791.1,2790.4,0.1433]
[1645894070583,0.00494475,2791.1,2790.4,0.1433]
[1645894070791,4.21573285,2791.1,2789.9,0.25]
[1645894070984,0.36147941,2791.0,2789.6,0.516]
[1645894071283,0.66147941,2791.0,2789.6,0.516]
[1645894071684,0.30347941,2791.0,2790.1,1.04603366]
[1645894071885,0.00347941,2791.0,2790.1,1.04603366]
[1645894072515,0.00347941,2791.1,2790.1,1.04603366]
[1645894072719,0.02748984,2791.1,2790.1,1.04603366]
[1645894073527,0.02748984,2791.1,2790.8,1.42085571]
[1645894073724,0.3,2791.2,2790.8,1.42085571]
[1645894074026,0.00480208,2791.1,2790.3,0.516]
[1645894074225,0.00828149,2791.1,2790.4,0.516]
[1645894074432,0.00480208,2791.1,2790.5,0.874]
[1645894074727,0.00480208,2791.1,2790.3,16.6065695]
[1645894074728,0.00480208,2791.1,2790.7,0.358]
[1645894074925,2.0,2791.9,2790.8,0.516]
[1645894075124,0.00347941,2791.8,2791.5,1.06087901]
[1645894075324,2.0,2791.9,2790.8,0.874]
[1645894075524,0.00347941,2791.8,2790.8,0.874]
[1645894076376,0.00480207,2791.4,2791.2,1.37392715]
[1645894076976,0.00480207,2791.4,2790.8,0.516]
[1645894077179,0.00347941,2791.8,2790.8,0.516]
[1645894077577,0.00187331,2791.4,2790.8,0.516]
[1645894078178,0.00187331,2791.4,2790.9,1.28485248]
[1645894078481,0.00347941,2791.8,2790.9,1.28485248]
[1645894078677,0.00187331,2791.2,2790.9,1.28485248]
[1645894079579,0.00347941,2791.8,2790.9,1.28485248]
[1645894080013,0.00187331,2791.2,2790.9,1.28485248]
[1645894080417,0.00187331,2791.2,2790.9,4.27771015]
[1645894080620,0.00187331,2791.2,2791.0,0.516]
[1645894080829,0.00347941,2792.0,2791.0,0.516]
[1645894081021,2.0,2792.2,2791.0,0.516]
[1645894081221,0.00347941,2792.1,2791.0,0.516]
[1645894081422,0.00347941,2792.1,2791.0,0.874]
[1645894081423,0.00474425,2791.2,2791.0,0.874]
[1645894082026,0.00347941,2792.1,2791.0,0.874]
[1645894082422,0.0047442,2791.2,2791.0,0.874]
[1645894082624,0.0047442,2791.2,2791.0,0.516]
[1645894082922,0.0047442,2791.2,2791.0,1.41187]
[1645894083324,0.00347941,2792.1,2791.0,1.41187]
[1645894083528,0.01897397,2791.7,2791.0,1.41187]
[1645894083968,0.01897397,2791.7,2791.0,0.516]
[1645894084570,0.00347941,2792.1,2791.0,0.516]
[1645894084771,0.0046453,2791.5,2791.0,0.516]
[1645894085376,0.0046453,2791.5,2790.5,0.516]
[1645894085775,0.00347941,2791.6,2790.5,0.516]
[1645894085973,0.0046454,2791.4,2790.6,1.06557672]
[1645894086375,0.0046454,2791.4,2790.3,3.4217]
[1645894086780,0.0046454,2791.4,2790.3,1.516]
[1645894086976,0.00347941,2791.5,2790.3,0.516]
[1645894087182,0.00464555,2791.1,2790.3,0.516]
[1645894087380,0.00464555,2791.1,2790.4,1.16914479]
[1645894087629,0.00464555,2791.1,2790.4,1.68514479]
[1645894087829,0.00464555,2791.1,2790.4,1.68425087]
[1645894088032,0.00347941,2791.7,2790.4,1.68425087]
[1645894088230,1.66141922,2791.7,2790.4,1.68425087]
[1645894088427,0.00465209,2791.1,2790.4,1.68425087]
[1645894089331,0.00347941,2791.5,2790.4,1.68425087]
[1645894089534,0.00465209,2791.1,2790.4,1.68425087]
[1645894090536,1.36141922,2791.4,2790.4,1.68425087]
[1645894090738,0.00465209,2791.1,2790.4,1.68425087]
[1645894091408,0.00465209,2791.1,2790.4,2.58031087]
[1645894091704,0.00347941,2791.3,2790.4,3.58031087]
[1645894092100,0.00465166,2791.1,2790.5,1.51434491]
[1645894092302,0.00465166,2791.1,2790.6,0.516]
[1645894092904,0.00347941,2791.3,2790.6,0.874]
[1645894093108,0.00465173,2791.1,2790.7,0.89595]
[1645894093305,0.00465173,2791.1,2790.8,0.516]
[1645894094104,0.00347941,2791.5,2790.8,0.516]
[1645894094304,0.01860471,2791.5,2791.4,1.06857473]
[1645894095327,1.35793981,2791.6,2791.4,1.06857473]
[1645894095525,1.36259121,2791.6,2790.8,0.516]
[1645894095724,1.36607062,2791.6,2790.8,0.516]
[1645894095935,1.36259121,2791.6,2790.8,0.516]
[1645894096534,1.35793981,2791.6,2790.8,0.516]
[1645894096725,0.00465165,2791.3,2790.8,0.516]
[1645894096927,0.00465165,2791.3,2790.9,1.08728951]
[1645894097127,0.00465165,2791.3,2790.9,1.96128951]
[1645894097528,0.00465165,2791.3,2790.9,12.88128951]
[1645894097731,1.36141922,2791.7,2790.9,14.18128951]
[1645894097928,1.36141922,2791.8,2791.1,0.358]
[1645894098127,0.00465175,2791.2,2791.1,0.358]
[1645894098328,0.00465175,2791.2,2791.1,0.874]
[1645894098529,0.00465175,2791.2,2791.1,1.174]
[1645894098968,1.36141922,2791.9,2791.1,1.174]
[1645894099175,1.35793981,2792.0,2791.9,1.20599538]
[1645894099376,1.35793981,2792.0,2791.4,0.516]
[1645894099776,1.35793981,2792.1,2791.4,0.516]
[1645894100176,1.35793981,2791.9,2791.4,0.516]
[1645894100380,0.00465499,2791.9,2791.6,1.27939909]
[1645894101276,1.35793981,2792.0,2791.6,1.27939909]
[1645894101688,0.00465499,2791.9,2791.6,1.79539909]
[1645894102559,1.35793981,2792.2,2791.6,1.79539909]
[1645894102752,1.37687908,2792.3,2792.1,1.10161958]
[1645894103359,1.37687908,2792.3,2792.1,1.61761958]
[1645894103557,0.01893927,2792.3,2792.1,1.61761958]
[1645894103757,1.35793981,2792.5,2792.2,0.358]
[1645894103961,1.80941463,2792.8,2792.3,0.516]
[1645894103962,1.35793981,2792.7,2792.3,0.516]
[1645894104159,0.69703865,2793.6,2792.5,12.5]
[1645894104371,7.36,2794.5,2793.6,0.37420852]
[1645894104372,0.15696394,2794.5,2793.6,0.37420852]
[1645894104565,2.95323727,2795.7,2794.2,6.46798657]
[1645894104566,1.2045,2795.7,2794.2,6.46798657]
[1645894104760,1.67842266,2796.1,2794.3,9.7254576]
[1645894104761,3.01033613,2795.9,2794.3,9.7254576]
[1645894104962,1.1333,2796.1,2794.9,6.455]
[1645894105158,3.3248,2796.4,2795.7,1.18508031]
[1645894105364,0.06107048,2796.5,2795.8,4.7267881]
[1645894105560,0.06107048,2796.5,2795.9,0.516]
[1645894105967,0.06107048,2796.5,2795.0,2.03898]
[1645894105968,10.5,2796.4,2795.0,0.25]
[1645894106161,10.5,2796.4,2794.6,1.5]
[1645894106162,0.358,2796.2,2794.6,1.5]
[1645894106385,1.26151531,2795.7,2794.6,0.5]
[1645894106586,0.01273738,2796.0,2794.6,0.5]
[1645894106587,0.89506,2795.6,2794.6,0.5]
[1645894107285,1.19506,2795.6,2794.6,0.5]
[1645894107486,1.19506,2795.6,2794.3,4.31483449]
[1645894107987,1.19506,2795.6,2794.3,0.10404639]
[1645894107988,0.00186763,2795.2,2794.3,0.10404639]
[1645894108587,0.658,2795.6,2794.3,0.10404639]
[1645894108789,0.00468378,2794.9,2794.5,1.35139566]
[1645894109390,0.00468378,2794.9,2794.6,4.07812868]
[1645894109594,0.00468378,2794.9,2794.5,1.35139566]
[1645894109789,5.09196,2795.9,2794.5,1.35139566]
[1645894110028,0.01904526,2795.3,2795.0,1.18441225]
[1645894110924,0.00346671,2795.8,2795.0,1.18441225]
[1645894111123,0.00476162,2795.3,2795.0,1.18441225]
[1645894111326,0.00476162,2795.3,2794.5,4.07812868]
[1645894111732,0.00476162,2795.3,2794.7,0.89479]
[1645894111929,0.00476162,2795.3,2794.8,4.07812868]
[1645894112236,0.00346671,2795.8,2794.9,0.516]
[1645894112428,0.00442518,2795.1,2795.0,4.07812868]
[1645894112630,0.00442518,2795.1,2794.9,0.516]
[1645894112830,0.00442518,2795.1,2794.7,0.25]
[1645894113027,0.00442518,2795.1,2794.6,4.07812868]
[1645894113028,0.00442518,2795.1,2794.6,4.59412868]
[1645894113229,0.00442518,2795.1,2794.6,4.07812868]
[1645894113432,0.00346671,2795.8,2794.7,1.28564598]
[1645894113633,0.00432571,2795.0,2794.7,1.28564598]
[1645894114481,0.01730023,2795.4,2794.7,1.28564598]
[1645894114682,0.00346671,2795.8,2794.3,0.24714639]
[1645894114895,0.00432571,2795.0,2794.3,0.24714639]
[1645894115883,0.00346671,2795.4,2794.3,0.24714639]
[1645894116086,0.00432588,2794.8,2794.3,0.76314639]
[1645894116287,0.00432588,2794.8,2794.6,0.8948]
[1645894116482,0.00432588,2794.8,2794.7,4.07812868]
[1645894116683,0.00432588,2794.8,2794.7,5.1845931]
[1645894116883,2.0,2796.0,2794.7,5.1845931]
[1645894117082,0.00346671,2795.9,2794.7,5.7005931]
[1645894117285,0.00436985,2794.9,2794.7,5.7005931]
[1645894117527,0.00436985,2794.9,2794.8,4.97273828]
[1645894118130,0.00346671,2795.9,2794.8,4.07812868]
[1645894118531,0.00436976,2795.0,2794.8,4.07812868]
[1645894118731,0.00436976,2795.0,2794.7,2.30521]
[1645894118931,0.00436976,2795.0,2794.8,4.07812868]
[1645894119329,0.00346671,2795.9,2794.8,4.07812868]
[1645894119730,0.00436972,2795.0,2794.8,4.07812868]
[1645894119929,0.00436972,2795.0,2794.9,1.03336936]
[1645894120140,0.00436972,2795.0,2794.9,5.11149804]
[1645894120434,0.00436972,2795.0,2794.9,5.46949804]
[1645894120630,0.00346671,2795.9,2794.9,5.11149804]
[1645894120832,0.01745833,2795.5,2795.0,0.89465]
[1645894121285,0.01745833,2795.5,2795.1,4.07812868]
[1645894121688,0.00346671,2795.9,2795.2,0.358]
[1645894121886,0.00346671,2796.2,2795.4,0.89437]
[1645894122085,0.01745706,2795.9,2795.5,4.59412868]
[1645894122285,0.01745706,2795.9,2795.5,15.87212868]
[1645894122484,0.01745706,2795.9,2795.6,1.32578433]
[1645894122691,0.01745706,2795.9,2795.7,4.59412868]
[1645894122883,0.06107048,2796.5,2795.8,4.07812868]
[1645894123086,0.06107048,2796.5,2795.8,16.76651868]
[1645894123286,0.00436452,2795.9,2795.8,17.76651868]
[1645894123687,0.00436452,2795.9,2795.8,18.06651868]
[1645894124089,0.06107048,2796.5,2795.8,18.06651868]
[1645894124288,0.00346671,2796.8,2796.0,12.5]
[1645894124493,0.5,2797.3,2796.4,10.91993011]
[1645894124790,6.239,2798.5,2796.4,10.91993011]
[1645894124791,6.239,2798.5,2797.3,1.3615518]
[1645894125046,7.36,2798.6,2797.4,15.85465879]
[1645894125245,0.5,2798.5,2797.4,16.85465879]
[1645894125642,0.5,2798.5,2797.5,12.15423011]
[1645894125847,1.2408,2799.1,2798.1,1.04408525]
[1645894126043,7.36,2799.2,2798.2,4.59412868]
[1645894126444,4.0476,2799.6,2798.2,4.59412868]
[1645894126643,1.139,2799.6,2798.2,4.59412868]
[1645894126842,1.497,2799.6,2798.2,4.59412868]
[1645894127044,1.497,2799.6,2798.2,0.516]
[1645894127245,0.358,2799.1,2797.7,19.31576313]
[1645894127447,5.358,2799.1,2797.7,19.31576313]
[1645894127644,0.18008108,2799.0,2797.7,19.31576313]
[1645894127852,0.18008108,2799.0,2797.5,0.25]
[1645894127853,7.89408,2798.7,2797.5,0.25]
[1645894128046,7.89408,2798.7,2797.0,2.3617]
[1645894128047,1.7300896,2798.5,2797.1,4.11880818]
[1645894128245,2.0300896,2798.5,2797.1,4.11880818]
[1645894128650,0.18008108,2798.4,2797.1,4.11880818]
[1645894128903,0.18008108,2798.4,2796.5,10.6517258]
[1645894128904,5.0,2798.0,2796.6,4.11880818]
[1645894129101,5.0,2798.0,2796.2,0.5]
[1645894129102,5.358,2798.0,2796.3,5.28170818]
[1645894129302,0.18503585,2797.9,2796.2,4.61880818]
[1645894129505,0.358,2797.7,2796.3,1.2783899]
[1645894129705,1.5523305,2797.7,2796.3,1.2783899]
[1645894130006,0.18008108,2797.6,2796.3,1.2783899]
[1645894130206,0.18008108,2797.6,2796.2,4.61880818]
[1645894130207,1.07446108,2797.6,2796.2,4.61880818]
[1645894130410,0.00495553,2797.1,2796.2,4.61880818]
[1645894130608,0.00495553,2797.1,2796.2,0.5]
[1645894130806,0.00495553,2797.1,2796.2,4.61880818]
[1645894131213,0.00495553,2797.1,2796.2,0.5]
[1645894131411,1.25243,2797.4,2796.0,5.17711674]
[1645894131612,0.00345081,2797.3,2796.0,4.11880818]
[1645894131812,0.00495589,2796.8,2796.0,4.11880818]
[1645894132111,0.00495589,2796.8,2796.0,1.0]
[1645894132317,0.00495589,2796.8,2796.0,4.11880818]
[1645894132528,0.00495589,2796.8,2796.0,5.11880818]
[1645894132730,0.00345081,2797.3,2796.0,5.11880818]
[1645894132935,0.00495614,2796.5,2796.0,5.11880818]
[1645894133130,0.00495614,2796.5,2796.0,1.0]
[1645894133329,0.00495614,2796.5,2795.9,0.516]
[1645894133532,0.00495614,2796.5,2796.0,1.01267588]
[1645894133736,0.00345081,2796.9,2795.7,0.516]
[1645894133939,1.0,2797.2,2795.1,8.31708]
[1645894133940,0.358,2797.0,2795.3,10.87390818]
[1645894134139,0.00211308,2796.5,2795.2,4.11880818]
[1645894134838,0.00211308,2796.5,2795.7,1.44209125]
[1645894135036,0.30345081,2796.9,2795.7,1.44209125]
[1645894135237,0.00211282,2796.5,2795.7,1.44209125]
[1645894135842,0.00052467,2796.5,2795.7,1.44209125]
[1645894136042,0.00052467,2796.5,2795.6,4.11880818]
[1645894136278,0.30345081,2796.9,2795.6,4.11880818]
[1645894136481,0.30345081,2796.9,2795.3,4.11880818]
[1645894136985,0.30345081,2796.9,2795.7,1.15183599]
[1645894139889,0.89459,2796.8,2795.7,1.15183599]
[1645894140132,0.00495986,2796.6,2795.9,0.00496108]
[1645894141057,0.89804081,2796.8,2795.5,4.11880818]
[1645894141344,0.00495982,2796.6,2795.9,0.00496104]
[1645894142140,0.89804081,2796.8,2795.7,4.11880818]
[1645894142335,0.89804081,2796.8,2795.5,4.11880818]
[1645894142536,0.00495982,2796.6,2795.9,0.00496104]
[1645894143336,0.358,2796.7,2795.2,5.11880818]
[1645894143536,0.00345081,2796.6,2795.4,1.28883648]
[1645894143781,0.89962982,2796.6,2795.9,0.00496104]
[1645894143981,0.00495982,2796.6,2795.9,0.00496104]
[1645894144581,0.00345081,2796.8,2795.5,16.39680818]
[1645894144980,0.00495982,2796.6,2796.2,1.08301929]
[1645894145788,0.00345081,2797.0,2796.2,1.08301929]
[1645894146185,0.00495994,2796.6,2796.2,1.08301929]
[1645894146988,0.00345081,2797.0,2796.2,1.08301929]
[1645894147185,0.00495994,2796.6,2796.3,4.11880818]
[1645894147628,0.00495994,2796.6,2796.3,5.11880818]
[1645894148130,0.00495994,2796.6,2796.4,1.0]
[1645894148334,0.00345081,2797.4,2796.7,1.20723324]
[1645894148528,0.01983534,2797.3,2796.8,4.11880818]
[1645894148728,0.01983534,2797.3,2796.7,1.20723324]
[1645894149232,0.01983534,2797.3,2796.8,4.11880818]
[1645894149427,0.00345081,2797.6,2796.8,4.11880818]
[1645894149634,0.00495946,2797.1,2796.8,4.11880818]
[1645894149831,0.00495946,2797.1,2796.7,1.20723324]
[1645894150032,0.00495946,2797.1,2796.8,4.11880818]
[1645894150631,0.01983486,2797.6,2796.8,4.11880818]
[1645894150632,0.00345081,2797.7,2796.8,4.11880818]
[1645894151032,0.00495951,2797.1,2796.8,4.11880818]
[1645894151278,0.00495951,2797.1,2796.7,1.20723324]
[1645894151682,0.00495951,2797.1,2796.8,4.11880818]
[1645894151891,0.00345081,2797.7,2796.9,0.43]
[1645894152093,0.01983527,2797.5,2797.0,4.11880818]
[1645894152484,0.01983527,2797.5,2796.9,0.43]
[1645894152684,0.01983527,2797.5,2797.0,4.11880818]
[1645894153087,0.00345081,2798.5,2797.1,1.10722751]
[1645894153392,3.97764385,2798.6,2797.3,9.0]
[1645894153785,0.12508843,2797.6,2797.3,9.0]
[1645894155744,0.12508843,2797.6,2797.3,9.00496342]
[1645894156547,0.12508843,2797.6,2797.3,9.0]
[1645894157047,0.12508843,2797.6,2797.3,9.36296342]
[1645894157247,0.12508843,2797.6,2797.4,4.11880818]
[1645894158051,0.12508843,2797.6,2797.5,1.12754855]
[1645894158453,0.12508843,2797.6,2797.4,0.00496337]
[1645894158872,0.00496234,2797.9,2797.4,0.00496337]
[1645894159076,3.4414,2798.6,2797.3,9.0]
[1645894159273,0.00209324,2797.9,2797.3,9.0]
[1645894159678,0.00209324,2797.9,2797.4,1.41441091]
[1645894160278,0.00343439,2798.5,2797.4,5.53321909]
[1645894160480,0.0049664,2797.9,2797.5,0.00496716]
[1645894160680,0.0049664,2797.9,2797.5,4.12377534]
[1645894160878,0.0049664,2797.9,2797.6,0.358]
[1645894161085,0.0049664,2797.9,2797.5,4.12377534]
[1645894161279,0.0049664,2797.9,2797.5,5.12377534]
[1645894161480,0.00343439,2798.5,2797.5,5.11880818]
[1645894161679,0.00343439,2798.5,2797.6,0.00496711]
[1645894161680,0.00496643,2797.9,2797.6,0.00496711]
[1645894162735,0.00343439,2798.5,2797.5,4.47680818]
[1645894162931,0.00496647,2797.9,2797.6,0.00496706]
[1645894163835,0.00343439,2798.5,2797.6,0.358]
[1645894164035,0.12555312,2797.8,2797.6,0.36296706]
[1645894164439,0.00343439,2798.5,2798.0,0.358]
[1645894164638,0.01986092,2798.6,2798.2,0.358]
[1645894164835,0.01986092,2798.6,2798.2,4.90680818]
[1645894165034,0.00343439,2799.5,2798.2,4.54880818]
[1645894165435,0.00343439,2799.5,2798.4,1.36507404]
[1645894167089,0.00343439,2799.5,2798.5,4.11880818]
[1645894167290,0.00343439,2799.5,2798.4,1.36507404]
[1645894167489,0.00343439,2799.5,2798.5,4.11880818]
[1645894167690,0.00208952,2799.1,2798.5,4.11880818]
[1645894168190,0.00208952,2799.1,2798.4,1.36507404]
[1645894168691,0.00343439,2799.5,2798.5,4.11880818]
[1645894168895,0.00496553,2798.9,2798.5,4.11880818]
[1645894169090,0.00496553,2798.9,2798.4,1.36507404]
[1645894169290,0.00496553,2798.9,2798.5,16.29038818]
[1645894169291,6.553e-05,2798.9,2798.5,16.29038818]
[1645894169494,6.553e-05,2798.9,2798.7,11.278]
[1645894169693,6.553e-05,2798.9,2798.8,4.90680818]
[1645894169895,0.00343439,2799.7,2798.8,15.82680818]
[1645894170168,3.57086617,2800.2,2799.1,0.358]
[1645894170169,0.00343439,2799.9,2799.1,0.358]
[1645894170355,3.57086617,2800.2,2799.3,11.278]
[1645894170356,0.00343439,2800.1,2799.3,11.278]
[1645894170556,0.00343439,2799.9,2799.5,10.92]